fUST/lending_fUST_20250419
["ID","MTS","AMOUNT","RATE_DAILY","PERIOD"]
[358405767,1745070656360,-500.0,0.00022191,2]
[358405768,1745070656370,-500.0,0.00022191,2]
[358405769,1745070656379,-502.33,0.00022191,2]
[358405770,1745070656389,-803.61,0.00022191,2]
[358405771,1745070656399,-628.97674238,0.00022191,2]
[358405772,1745070656409,-1191.15,0.00022191,2]
[358405773,1745070656419,-500.0,0.00022191,2]
[358405774,1745070656429,-3207.12,0.00022191,2]
[358405775,1745070656439,-1000.0,0.00022191,2]
[358405776,1745070656449,-1524.07,0.00022191,2]
[358405777,1745070656459,-500.0,0.00022191,2]
[358405778,1745070656469,-920.6,0.00022191,2]
[358405779,1745070656480,-500.0,0.00022191,2]
[358405780,1745070656491,-634.33,0.00022191,2]
[358405781,1745070656501,-2897.03,0.00022191,2]
[358405782,1745070656511,-500.0,0.00022191,2]
[358405783,1745070656521,-500.0,0.00022191,2]
[358405784,1745070656531,-500.0,0.00022191,2]
[358405785,1745070656541,-500.0,0.00022191,2]
[358405786,1745070656551,-931.37,0.00022191,2]
[358405787,1745070656561,-625.0,0.00022191,2]
[358405788,1745070656570,-500.0,0.00022191,2]
[358405789,1745070656580,-10453.07,0.00022191,2]
[358405790,1745070656590,-500.0,0.00022191,2]
[358405791,1745070656599,-500.0,0.00022191,2]
[358405792,1745070656609,-500.0,0.00022191,2]
[358405793,1745070656619,-500.0,0.00022191,2]
[358405794,1745070656629,-500.0,0.00022191,2]
[358405795,1745070656639,-500.0,0.00022191,2]
[358405796,1745070656649,-500.0,0.00022191,2]
[358405797,1745070656659,-999.94,0.00022191,2]
[358405798,1745070656669,-500.0,0.00022191,2]
[358405799,1745070656679,-500.0,0.00022191,2]
[358405800,1745070656688,-1267.46,0.00022191,2]
[358405801,1745070656698,-500.0,0.00022191,2]
[358405802,1745070656708,-500.0,0.00022191,2]
[358405803,1745070656718,-500.0,0.00022191,2]
[358405804,1745070656728,-2449.51,0.00022191,2]
[358405805,1745070656738,-500.0,0.00022191,2]
[358405806,1745070656749,-500.0,0.00022191,2]
[358405807,1745070656763,-500.0,0.00022191,2]
[358405808,1745070656772,-809.54,0.00022191,2]
[358405809,1745070656782,-500.0,0.00022191,2]
[358405810,1745070656792,-500.0,0.00022191,2]
[358405811,1745070656803,-500.0,0.00022191,2]
[358405812,1745070656813,-500.0,0.00022191,2]
[358405813,1745070656823,-500.0,0.00022191,2]
[358405814,1745070656833,-820.31,0.00022191,2]
[358405815,1745070656843,-546.24,0.00022191,2]
[358405816,1745070656853,-500.0,0.00022191,2]
[358405817,1745070656868,-500.0,0.00022191,2]
[358405818,1745070656878,-1050.26,0.00022191,2]
[358405819,1745070656887,-500.0,0.00022191,2]
[358405820,1745070656897,-500.0,0.00022191,2]
[358405821,1745070656907,-5255.37,0.00022191,2]
[358405822,1745070656917,-500.0,0.00022191,2]
[358405823,1745070656927,-500.0,0.00022191,2]
[358405824,1745070656937,-500.0,0.00022191,2]
[358405825,1745070656947,-3855.26,0.00022191,2]
[358405826,1745070656957,-2964.06,0.00022191,2]
[358405827,1745070656966,-500.0,0.00022191,2]
[358405828,1745070656976,-500.0,0.00022191,2]
[358405829,1745070656986,-451.04337338,0.00022191,2]
[358405830,1745070657599,-151.0,0.00021917,2]
[358405831,1745070657611,-500.0,0.00021917,2]
[358405832,1745070657620,-151.0,0.00022054,2]
[358405833,1745070657630,-151.0,0.00022191,2]
[358405834,1745070657640,-48.95662662,0.00022191,2]
[358405835,1745070657652,-735.17,0.00022191,2]
[358405836,1745070657663,-500.0,0.00022191,2]
[358405837,1745070657672,-841.11,0.00022191,2]
[358405838,1745070657682,-383.67,0.00022191,2]
[358405839,1745070657692,-500.0,0.00022191,2]
[358405840,1745070657702,-500.0,0.00022191,2]
[358405841,1745070657713,-1300.63,0.00022191,2]
[358405842,1745070657722,-500.0,0.00022191,2]
[358405843,1745070657732,-247.56159665,0.00022191,2]
[358405844,1745070657741,-17063.92,0.00022191,2]
[358405845,1745070657750,-901.66,0.00022191,2]
[358405846,1745070657759,-500.0,0.00022191,2]
[358405847,1745070657768,-525.53720885,0.00022191,2]
[358405848,1745070657777,-946.71,0.00022191,2]
[358405849,1745070657786,-500.0,0.00022191,2]
[358405850,1745070657796,-635.58,0.00022191,2]
[358405851,1745070657806,-500.0,0.00022191,2]
[358405852,1745070657815,-500.0,0.00022191,2]
[358405853,1745070657825,-500.0,0.00022191,2]
[358405854,1745070657834,-500.0,0.00022191,2]
[358405855,1745070657843,-500.0,0.00022191,2]
[358405856,1745070657854,-500.0,0.00022191,2]
[358405857,1745070657863,-500.0,0.00022191,2]
[358405858,1745070657873,-6054.23,0.00022191,2]
[358405859,1745070657882,-500.0,0.00022191,2]
[358405860,1745070657891,-500.0,0.00022191,2]
[358405861,1745070657901,-500.0,0.00022191,2]
[358405862,1745070657911,-218.56101591,0.00022191,2]
[358405863,1745070657923,-500.0,0.00022191,2]
[358405864,1745070657932,-500.0,0.00022191,2]
[358405865,1745070657943,-500.0,0.00022191,2]
[358405866,1745070657952,-500.0,0.00022191,2]
[358405867,1745070657963,-500.0,0.00022191,2]
[358405868,1745070657974,-793.49,0.00022191,2]
[358405869,1745070657984,-754.25,0.00022191,2]
[358405870,1745070657994,-353.89001048,0.00022191,2]
[358405871,1745070658004,-990.18,0.00022191,2]
[358405872,1745070658014,-1599.84,0.00022191,2]
[358405873,1745070658023,-851.28,0.00022191,2]
[358405874,1745070658033,-500.0,0.00022191,2]
[358405875,1745070658043,-500.0,0.00022191,2]
[358405876,1745070658053,-701.59,0.00022191,2]
[358405877,1745070658063,-500.0,0.00022191,2]
[358405878,1745070658072,-250.0,0.000222,2]
[358405879,1745070658082,-250.0,0.000222,2]
[358405880,1745070658091,-157.48,0.000222,2]
[358405881,1745070658102,-542.7046178,0.0002224,2]
[358405882,1745070658112,-151.0,0.00022328,2]
[358405883,1745070658121,-151.0,0.00022328,2]
[358405884,1745070658132,-500.0,0.00022328,2]
[358405885,1745070658142,-500.0,0.00022328,2]
[358405886,1745070658151,-151.0,0.00022328,2]
[358405887,1745070658161,-200.0,0.000224,2]
[358405888,1745070658171,-151.0,0.000224,7]
[358405889,1745070658180,-249.41612755,0.00022465,2]
[358405890,1745070658189,-245.79943135,0.00022465,2]
[358405891,1745070658199,-500.0,0.00022465,2]
[358405892,1745070658209,-500.0,0.00022465,2]
[358405893,1745070658218,-151.0,0.00022465,2]
[358405894,1745070658228,-500.0,0.00022465,2]
[358405895,1745070658237,-500.0,0.00022465,2]
[358405896,1745070658247,-500.0,0.00022465,2]
[358405897,1745070658256,-500.0,0.00022465,2]
[358405898,1745070658266,-500.0,0.00022465,2]
[358405899,1745070658275,-500.0,0.00022465,2]
[358405900,1745070658285,-500.0,0.00022465,2]
[358405901,1745070658295,-716.97,0.00022465,2]
[358405902,1745070658304,-500.0,0.00022465,2]
[358405903,1745070658313,-500.0,0.00022465,2]
[358405904,1745070658322,-500.0,0.00022465,2]
[358405905,1745070658331,-702.09,0.00022465,2]
[358405906,1745070658341,-500.0,0.00022465,2]
[358405907,1745070658350,-500.0,0.00022465,2]
[358405908,1745070658359,-171.5087085,0.00022465,2]
[358405909,1745070658372,-439.2312915,0.00022465,2]
[358405910,1745070658381,-500.0,0.00022465,2]
[358405911,1745070658390,-924.42,0.00022465,2]
[358405912,1745070658399,-500.0,0.00022465,2]
[358405913,1745070658409,-1308.79,0.00022465,2]
[358405914,1745070658419,-500.0,0.00022465,2]
[358405915,1745070658428,-587.86,0.00022465,2]
[358405916,1745070658438,-500.0,0.00022465,2]
[358405917,1745070658448,-564.45,0.00022465,2]
[358405918,1745070658457,-500.0,0.00022465,2]
[358405919,1745070658467,-500.0,0.00022465,2]
[358405920,1745070658477,-500.0,0.00022465,2]
[358405921,1745070658486,-500.0,0.00022465,2]
[358405922,1745070658496,-500.0,0.00022465,2]
[358405923,1745070658506,-81.60931212,0.00022465,2]
[358406102,1745071831788,-384.67918856,0.00020091,2]
[358406104,1745071831798,-1389.01875833,0.00021817,2]
[358406106,1745071831807,-207.4,0.00021904,2]
[358406107,1745071831816,-160.0,0.00021915,2]
[358406108,1745071831825,-160.0,0.00021915,2]
[358406109,1745071831835,-300.0,0.00021915,2]
[358406110,1745071831844,-300.0,0.00021915,2]
[358406111,1745071831854,-160.0,0.00021915,2]
[358406112,1745071831863,-9983.93073029,0.00021916,2]
[358406150,1745071838066,-6683.85066004,0.00021916,2]
[358406152,1745071838095,-4478.40843748,0.00021916,2]
[358406168,1745071842939,-256.45279237,0.00019816,2]
[358406169,1745071842949,-115.24720763,0.00021916,2]
[358406176,1745071845988,-701.39368558,0.00021916,2]
[358406288,1745072877162,9370.28131188,0.00018,2]
[358406325,1745073031877,-319.74026888,0.00019816,2]
[358406326,1745073031888,-1346.70973112,0.0002,2]
[358406327,1745073031965,-4638.69249953,0.0002,2]
[358406328,1745073031976,-1999.72854257,0.000209,3]
[358406329,1745073031986,-1461.0633415,0.00020976,2]
[358406330,1745073031995,-300.0,0.00021073,2]
[358406331,1745073032006,-300.0,0.00021073,2]
[358406332,1745073032016,-500.0,0.00021074,2]
[358406333,1745073032025,-250.57003447,0.00021074,2]
[358406334,1745073032036,-500.0,0.00021074,2]
[358406335,1745073032045,-500.0,0.00021074,2]
[358406336,1745073032055,-504.74974723,0.00021074,2]
[358406337,1745073032064,-221.98851906,0.00021074,2]
[358406338,1745073032076,-282.0452744,0.00021074,2]
[358406339,1745073032085,-500.0,0.00021074,2]
[358406340,1745073032095,-11379.48249918,0.00021075,2]
[358406341,1745073032104,-6757.84561036,0.00021075,2]
[358406371,1745073038080,-557.62853394,0.00021075,3]
[358406372,1745073038093,-2516.39900592,0.00021075,2]
[358406395,1745073046179,-213.16017925,0.00018975,2]
[358406396,1745073046189,-34656.78857453,0.00021075,2]
[358406397,1745073046202,-6068.96680919,0.00021075,2]
[358406398,1745073046213,-249.834687,0.00021076,2]
[358406400,1745073046223,-273.93190942,0.00021076,2]
[358406401,1745073046233,-11525.73583828,0.00021077,2]
[358406402,1745073046260,-527.6765108,0.00021077,2]
[358406462,1745074232133,-300.0,0.00018857,2]
[358406464,1745074232143,-300.0,0.00018857,2]
[358406466,1745074232153,-6864.37618578,0.00018858,2]
[358406468,1745074232164,-17024.80329672,0.00018858,2]
[358406470,1745074232173,-194.4696633,0.00018918,2]
[358406472,1745074232184,-859.99606697,0.00018977,2]
[358406474,1745074232193,-196.56654,0.00018986,2]
[358406476,1745074232203,-5882.11983525,0.00019616,2]
[358406478,1745074232212,-1278.43042383,0.00019616,2]
[358406480,1745074232221,-250.0,0.00019716,2]
[358406481,1745074232231,-250.00000001,0.00019716,2]
[358406484,1745074232240,-50000.0,0.00019799,2]
[358406487,1745074232249,-320.67080155,0.00019799,2]
[358406490,1745074232262,-500.0,0.00019799,2]
[358406492,1745074232272,-500.0,0.00019799,2]
[358406494,1745074232282,-500.0,0.00019799,2]
[358406496,1745074232291,-500.0,0.00019799,2]
[358406498,1745074232301,-500.0,0.00019799,2]
[358406500,1745074232311,-500.0,0.00019799,2]
[358406502,1745074232321,-627.45852781,0.00019799,2]
[358406504,1745074232331,-486.69255867,0.000198,2]
[358406506,1745074232341,-25307.30357434,0.000199,2]
[358406508,1745074232350,-179.16615693,0.000199,2]
[358406510,1745074232360,-1933.07092432,0.000199,2]
[358406512,1745074232370,-200.0,0.0001995,2]
[358406514,1745074232380,-865.51,0.00019989,3]
[358406516,1745074232390,-432.76,0.00019989,3]
[358406518,1745074232399,-216.38,0.00019989,3]
[358406520,1745074232409,-649.15,0.00019989,3]
[358406522,1745074232419,-13848.21,0.0001999,3]
[358406524,1745074232428,-6924.1,0.0001999,3]
[358406526,1745074232438,-3462.05,0.0001999,3]
[358406528,1745074232448,-1731.03,0.0001999,3]
[358406530,1745074232457,-160.0,0.0001999,3]
[358406532,1745074232467,-12562.5629343,0.0001999,3]
[358406534,1745074232477,-46487.82070168,0.0002,2]
[358406537,1745074232487,-811.2630305,0.00020048,2]
[358406539,1745074232498,-3209.2813042,0.00020056,2]
[358406541,1745074232508,-2837.2764544,0.00020056,2]
[358406543,1745074232518,-486.69255867,0.00020165,2]
[358406545,1745074232528,-291.5028963,0.00020248,2]
[358406547,1745074232538,-200.0,0.00020378,2]
[358406548,1745074232548,-486.69255867,0.0002053,2]
[358406549,1745074232558,-420.0,0.00020557,2]
[358406550,1745074232568,-420.0,0.00020657,2]
[358406551,1745074232578,-300.9157523,0.0002068,2]
[358406552,1745074232588,-1933.07092427,0.00020797,3]
[358406553,1745074232598,-190.45169521,0.00020824,2]
[358406554,1745074232608,-486.69255867,0.00020895,2]
[358406555,1745074232618,-207.4,0.00020926,2]
[358406556,1745074232628,-27696.42,0.00021067,3]
[358406557,1745074232638,-1003.26391031,0.00021076,2]
[358406558,1745074232648,-23141.8679687,0.00021077,2]
[358406565,1745074238443,-638.81323159,0.00021077,2]
[358406615,1745074246317,-403.05094753,0.00019798,2]
[358406616,1745074246327,-354.57994164,0.00019899,2]
[358406617,1745074246337,-191.75233659,0.00019899,2]
[358406618,1745074246348,-185.48481657,0.00019899,2]
[358406619,1745074246359,-3988.10122676,0.00021077,2]
[358406620,1745074246423,-669.19999995,0.00021077,2]
[358406621,1745074246435,-3555.80229161,0.00021077,2]
[358406650,1745075432443,-500.0,0.00018757,2]
[358406651,1745075432454,-1000.0,0.00018757,2]
[358406652,1745075432463,-1675.76722018,0.00018977,2]
[358406653,1745075432473,-250.0,0.00019743,2]
[358406655,1745075432482,-196.5665405,0.00020056,2]
[358406656,1745075432491,-237.8079277,0.00020236,2]
[358406658,1745075432500,-1409.38704212,0.00020876,2]
[358406660,1745075432510,-162.23085289,0.000209,2]
[358406662,1745075432520,-300.0,0.00020974,2]
[358406664,1745075432529,-300.0,0.00020974,2]
[358406666,1745075432538,-11711.45094625,0.00020975,2]
[358406667,1745075432550,-20020.66383686,0.00020975,2]
[358406668,1745075432559,-10332.10929217,0.00020977,2]
[358406669,1745075432569,-500.0,0.00021,2]
[358406670,1745075432578,-151.69718814,0.00021035,2]
[358406671,1745075432589,-154.12058,0.00021044,2]
[358406672,1745075432598,-358.68434083,0.00021076,2]
[358406673,1745075432607,-6240.39583324,0.00021077,2]
[358406698,1745075438652,-234.16263256,0.00020974,2]
[358406699,1745075438661,-487.69130101,0.00020974,2]
[358406700,1745075438671,-500.0,0.00020974,2]
[358406701,1745075438679,-500.0,0.00020974,2]
[358406702,1745075438687,-500.0,0.00020974,2]
[358406703,1745075438695,-500.0,0.00020974,2]
[358406704,1745075438702,-485.0790423,0.00020974,2]
[358406705,1745075438712,-14.9209577,0.00020974,2]
[358406706,1745075438720,-500.0,0.00020974,2]
[358406707,1745075438728,-500.0,0.00020974,2]
[358406709,1745075438736,-500.0,0.00020974,2]
[358406710,1745075438744,-500.0,0.00020974,2]
[358406711,1745075438753,-500.0,0.00020974,2]
[358406712,1745075438761,-500.0,0.00020974,2]
[358406713,1745075438770,-500.0,0.00020974,2]
[358406714,1745075438778,-500.0,0.00020974,2]
[358406715,1745075438786,-500.0,0.00020974,2]
[358406716,1745075438794,-500.0,0.00020974,2]
[358406717,1745075438802,-500.0,0.00020974,2]
[358406718,1745075438810,-500.0,0.00020974,2]
[358406719,1745075438818,-500.0,0.00020974,2]
[358406720,1745075438827,-500.0,0.00020974,2]
[358406721,1745075438835,-500.0,0.00020974,2]
[358406722,1745075438843,-500.0,0.00020974,2]
[358406723,1745075438851,-500.0,0.00020974,2]
[358406724,1745075438858,-500.0,0.00020974,2]
[358406725,1745075438866,-500.0,0.00020974,2]
[358406726,1745075438873,-500.0,0.00020974,2]
[358406727,1745075438881,-500.0,0.00020974,2]
[358406728,1745075438889,-500.0,0.00020974,2]
[358406729,1745075438897,-500.0,0.00020974,2]
[358406730,1745075438905,-500.0,0.00020974,2]
[358406731,1745075438914,-500.0,0.00020974,2]
[358406732,1745075438922,-500.0,0.00020974,2]
[358406733,1745075438929,-500.0,0.00020974,2]
[358406734,1745075438937,-496.13951301,0.00020974,2]
[358406735,1745075438946,-500.0,0.00020974,2]
[358406736,1745075438954,-500.0,0.00020974,2]
[358406737,1745075438964,-16769.02681339,0.00021077,2]
[358406738,1745075438972,-151.0,0.00021077,2]
[358406739,1745075438980,-151.0,0.00021077,2]
[358406740,1745075438988,-151.0,0.00021077,2]
[358406741,1745075438996,-207.4,0.00021342,2]
[358406742,1745075439003,-162.23085289,0.00021359,2]
[358406743,1745075439011,-666.52830739,0.00021778,2]
[358406744,1745075439019,-151.0,0.00021817,2]
[358406745,1745075439027,-151.0,0.00021817,2]
[358406746,1745075439035,-151.0,0.00021817,2]
[358406747,1745075439043,-151.0,0.00021817,2]
[358406748,1745075439051,-151.0,0.00021817,2]
[358406749,1745075439059,-151.0,0.00021817,2]
[358406750,1745075439067,-162.23085289,0.00021817,2]
[358406751,1745075439075,-287.38,0.00021847,3]
[358406752,1745075439084,-862.16,0.00021847,3]
[358406753,1745075439094,-1149.51,0.00021857,3]
[358406754,1745075439104,-574.75,0.00021857,3]
[358406755,1745075439115,-2299.02,0.00021867,3]
[358406756,1745075439124,-4598.04,0.00021877,3]
[358406757,1745075439135,-9196.07,0.00021887,3]
[358406758,1745075439144,-151.0,0.00021887,2]
[358406759,1745075439155,-151.0,0.00021887,2]
[358406760,1745075439165,-151.0,0.00021887,2]
[358406761,1745075439175,-151.0,0.00021887,2]
[358406762,1745075439186,-151.0,0.00021887,2]
[358406763,1745075439196,-158.238088,0.00021887,2]
[358406764,1745075439206,-12544.8526263,0.00021887,3]
[358406765,1745075439215,-151.0,0.00021887,2]
[358406766,1745075439225,-18392.15,0.00021897,3]
[358406767,1745075439235,-151.0,0.00021897,2]
[358406768,1745075439245,-151.0,0.00021897,2]
[358406769,1745075439255,-151.0,0.00021897,2]
[358406770,1745075439265,-151.0,0.000219,2]
[358406771,1745075439275,-151.0,0.000219,2]
[358406772,1745075439285,-1865.12567059,0.000219,3]
[358406773,1745075439295,-160.0,0.00021907,3]
[358406774,1745075439306,-839.11004726,0.00021907,3]
[358406775,1745075439315,-151.0,0.00021907,2]
[358406776,1745075439324,-290.0,0.00021907,2]
[358406777,1745075439334,-160.0,0.00021907,3]
[358406778,1745075439345,-288.00086,0.00021907,2]
[358406779,1745075439355,-500.0,0.00021907,2]
[358406780,1745075439366,-500.0,0.00021907,2]
[358406781,1745075439376,-151.0,0.00021907,2]
[358406782,1745075439387,-252.20425759,0.00021907,2]
[358406783,1745075439397,-204.72513784,0.00021907,2]
[358406784,1745075439407,-151.0,0.00021907,2]
[358406785,1745075439417,-200.05739167,0.00021907,2]
[358406786,1745075439427,-152.26790199,0.00021907,2]
[358406787,1745075439437,-500.0,0.00021907,2]
[358406788,1745075439447,-151.0,0.00021907,2]
[358406789,1745075439457,-500.0,0.00021907,2]
[358406790,1745075439466,-174.61913355,0.00021907,2]
[358406791,1745075439476,-199.04145395,0.00021907,2]
[358406792,1745075439486,-500.0,0.0002191,2]
[358406793,1745075439495,-12562.5629343,0.00021914,2]
[358406794,1745075439505,-160.0,0.00021914,2]
[358406795,1745075439515,-160.0,0.00021914,2]
[358406796,1745075439525,-420.4931809,0.00021914,2]
[358406797,1745075439535,-160.0,0.00021914,2]
[358406798,1745075439544,-160.0,0.00021914,2]
[358406799,1745075439553,-839.11004726,0.00021914,2]
[358406800,1745075439563,-160.0,0.00021914,2]
[358406801,1745075439573,-160.0,0.00021914,2]
[358406802,1745075439583,-151.0,0.00021914,2]
[358406803,1745075439592,-171.970564,0.00021914,2]
[358406804,1745075439602,-278.413387,0.00021914,2]
[358406805,1745075439612,-151.0,0.00021914,2]
[358406806,1745075439622,-191.04584503,0.00021915,2]
[358406807,1745075439631,-22356.21370017,0.00021917,2]
[358406808,1745075439644,-106.21924937,0.00021917,2]
[358406809,1745075439654,-190.61033977,0.00021917,3]
[358406810,1745075439666,-381.04239217,0.00021917,3]
[358406811,1745075439676,-500.0,0.00021917,2]
[358406812,1745075439687,-500.0,0.00021917,2]
[358406813,1745075439697,-500.0,0.00021917,2]
[358406814,1745075439707,-500.0,0.00021917,2]
[358406815,1745075439717,-500.0,0.00021917,2]
[358406816,1745075439728,-500.0,0.00021917,2]
[358406817,1745075439740,-572.71,0.00021917,2]
[358406818,1745075439750,-500.0,0.00021917,2]
[358406819,1745075439760,-500.0,0.00021917,2]
[358406820,1745075439770,-368.22420397,0.00021917,2]
[358406821,1745075439779,-500.0,0.00021917,2]
[358406822,1745075439788,-500.0,0.00021917,2]
[358406823,1745075439798,-500.0,0.00021917,2]
[358406824,1745075439808,-500.0,0.00021917,2]
[358406825,1745075439818,-500.0,0.00021917,2]
[358406826,1745075439828,-500.0,0.00021917,2]
[358406827,1745075439838,-424.53372303,0.00021917,2]
[358406828,1745075439848,-500.0,0.00021917,2]
[358406829,1745075439857,-500.0,0.00021917,2]
[358406830,1745075439867,-500.0,0.00021917,2]
[358406831,1745075439876,-293.74335793,0.00021917,2]
[358406835,1745075440816,-206.25664207,0.00021917,2]
[358406836,1745075440826,-279.04715497,0.00021917,2]
[358406837,1745075440836,-500.0,0.00021917,2]
[358406838,1745075440846,-500.0,0.00021917,2]
[358406839,1745075440856,-500.0,0.00021917,2]
[358406840,1745075440866,-500.0,0.00021917,2]
[358406841,1745075440876,-500.0,0.00021917,2]
[358406842,1745075440886,-500.0,0.00021917,2]
[358406843,1745075440896,-500.0,0.00021917,2]
[358406844,1745075440906,-500.0,0.00021917,2]
[358406845,1745075440916,-245.93384186,0.00021917,2]
[358406846,1745075440926,-1150.39,0.00021917,2]
[358406847,1745075440936,-500.0,0.00021917,2]
[358406848,1745075440946,-500.0,0.00021917,2]
[358406849,1745075440957,-500.0,0.00021917,2]
[358406850,1745075440969,-500.0,0.00021917,2]
[358406851,1745075440979,-574.34,0.00021917,2]
[358406852,1745075440989,-500.0,0.00021917,2]
[358406853,1745075440998,-500.0,0.00021917,2]
[358406854,1745075441008,-194.83028064,0.00021917,2]
[358406855,1745075441019,-500.0,0.00021917,2]
[358406856,1745075441029,-462.43744196,0.00021917,2]
[358406857,1745075441043,-537.56255804,0.00021917,2]
[358406858,1745075441053,-500.0,0.00021917,2]
[358406859,1745075441062,-500.0,0.00021917,2]
[358406860,1745075441072,-167.88,0.00021917,2]
[358406861,1745075441082,-500.0,0.00021917,2]
[358406862,1745075441092,-500.0,0.00021917,2]
[358406863,1745075441103,-500.0,0.00021917,2]
[358406864,1745075441113,-600.05,0.00021917,2]
[358406865,1745075441123,-496.00563394,0.00021917,2]
[358406866,1745075441133,-13.50180802,0.00021917,2]
[358406884,1745075446530,-500.0,0.00020974,2]
[358406886,1745075446542,-500.0,0.00020974,2]
[358406887,1745075446556,-316.01234096,0.00020974,2]
[358406888,1745075446657,-183.98765904,0.00020974,2]
[358406889,1745075446667,-500.0,0.00020974,2]
[358406890,1745075446677,-500.0,0.00020974,2]
[358406891,1745075446686,-500.0,0.00020974,2]
[358406892,1745075446696,-500.0,0.00020974,2]
[358406893,1745075446706,-500.0,0.00020974,2]
[358406894,1745075446715,-500.0,0.00020974,2]
[358406896,1745075446725,-300.0,0.00020974,2]
[358406898,1745075446734,-500.0,0.00020974,2]
[358406900,1745075446743,-500.0,0.00020974,2]
[358406902,1745075446753,-500.0,0.00020974,2]
[358406903,1745075446763,-486.49819198,0.00021917,2]
[358406904,1745075446772,-500.0,0.00021917,2]
[358406905,1745075446781,-500.0,0.00021917,2]
[358406906,1745075446791,-1064.53,0.00021917,2]
[358406907,1745075446800,-500.0,0.00021917,2]
[358406908,1745075446810,-500.0,0.00021917,2]
[358406909,1745075446820,-586.01,0.00021917,2]
[358406910,1745075446829,-605.42,0.00021917,2]
[358406911,1745075446839,-500.0,0.00021917,2]
[358406912,1745075446848,-500.0,0.00021917,2]
[358406913,1745075446858,-500.0,0.00021917,2]
[358406914,1745075446868,-500.0,0.00021917,2]
[358406915,1745075446878,-582.61,0.00021917,2]
[358406916,1745075446887,-510.69,0.00021917,2]
[358406917,1745075446897,-500.0,0.00021917,2]
[358406918,1745075446907,-500.0,0.00021917,2]
[358406919,1745075446916,-500.0,0.00021917,2]
[358406920,1745075446926,-500.0,0.00021917,2]
[358406921,1745075446936,-622.5,0.00021917,2]
[358406922,1745075446945,-500.0,0.00021917,2]
[358406923,1745075446955,-786.58,0.00021917,2]
[358406924,1745075446964,-500.0,0.00021917,2]
[358406925,1745075446977,-16.15376547,0.00021917,2]
[358406926,1745075446990,-483.84623453,0.00021917,2]
[358406927,1745075446999,-500.0,0.00021917,2]
[358406928,1745075447009,-753.42,0.00021917,2]
[358406929,1745075447019,-497.57508845,0.00021917,2]
[358406930,1745075447028,-500.0,0.00021917,2]
[358406931,1745075447037,-500.0,0.00021917,2]
[358406932,1745075447047,-500.0,0.00021917,2]
[358406933,1745075447056,-500.0,0.00021917,2]
[358406934,1745075447066,-500.0,0.00021917,2]
[358406935,1745075447076,-412.78378222,0.00021917,2]
[358406936,1745075447089,-87.21621778,0.00021917,2]
[358406937,1745075447099,-500.0,0.00021917,2]
[358406938,1745075447108,-261.78378222,0.00021917,2]
[358406939,1745075447120,-238.21621778,0.00021917,2]
[358406940,1745075447132,-122.033782,0.00021917,2]
[358406969,1745076632632,-2275.91903322,0.00018557,2]
[358406970,1745076632643,-250.0,0.00018657,2]
[358406971,1745076632652,-2016.15054098,0.00019817,2]
[358406972,1745076632662,-181.21267613,0.0002,2]
[358406973,1745076632671,-3371.6762556,0.00020026,2]
[358406974,1745076632681,-200.22897639,0.00020456,2]